fUSD/lending_fUSD_20240329
["ID","MTS","AMOUNT","RATE_DAILY","PERIOD"]
[320989410,1711731066998,-500.0,0.00053424,120]
[320989411,1711731067025,-3005.88,0.00053424,120]
[320989412,1711731067059,-2154.85,0.00053424,120]
[320989413,1711731067092,-2774.07,0.00053424,120]
[320989414,1711731067110,-500.0,0.00053424,120]
[320989415,1711731067120,-500.0,0.00053424,2]
[320989416,1711731067129,-500.0,0.00053424,2]
[320989417,1711731067139,-576.12,0.00053424,120]
[320989418,1711731067160,-589.34,0.00053424,120]
[320989419,1711731067170,-500.0,0.00053424,120]
[320989420,1711731067179,-1154.67,0.00053424,120]
[320989421,1711731067188,-500.0,0.00053424,120]
[320989422,1711731067197,-1991.81,0.00053424,120]
[320989423,1711731067207,-500.0,0.00053424,120]
[320989424,1711731067218,-2448.83,0.00053424,120]
[320989425,1711731067228,-500.0,0.00053424,120]
[320989426,1711731067238,-2369.82,0.00053424,120]
[320989427,1711731067261,-500.0,0.00053424,120]
[320989428,1711731067289,-904.7,0.00053424,120]
[320989429,1711731067302,-544.8,0.00053424,120]
[320989430,1711731067313,-1684.1,0.00053424,120]
[320989431,1711731067326,-6471.64,0.00053424,120]
[320989432,1711731067339,-4037.26,0.00053424,21]
[320989433,1711731067351,-2486.15,0.00053424,120]
[320989434,1711731067361,-1722.55,0.00053424,120]
[320989435,1711731067370,-1325.8,0.00053424,120]
[320989436,1711731067380,-500.0,0.00053424,120]
[320989437,1711731067389,-2956.53,0.00053424,120]
[320989438,1711731067410,-4113.57,0.00053424,120]
[320989439,1711731067421,-500.0,0.00053424,120]
[320989440,1711731067460,-500.0,0.00053424,120]
[320989441,1711731067479,-500.0,0.00053424,120]
[320989442,1711731067489,-1279.42,0.00053424,120]
[320989443,1711731067500,-500.0,0.00053424,120]
[320989444,1711731067510,-915.79,0.00053424,120]
[320989445,1711731067521,-500.0,0.00053424,120]
[320989446,1711731067531,-1595.2,0.00053424,120]
[320989447,1711731067543,-500.0,0.00053424,120]
[320989448,1711731067554,-500.0,0.00053424,120]
[320989449,1711731067566,-684.51,0.00053424,120]
[320989450,1711731067576,-500.0,0.00053424,120]
[320989451,1711731067587,-500.0,0.00053424,120]
[320989452,1711731067597,-230.16952209,0.00053424,120]
[320989453,1711731067607,-500.0,0.00053424,120]
[320989454,1711731067618,-2976.3,0.00053424,120]
[320989455,1711731067628,-500.0,0.00053424,120]
[320989456,1711731067639,-1003.25,0.00053424,120]
[320989457,1711731067649,-500.0,0.00053424,120]
[320989458,1711731067659,-1221.75,0.00053424,120]
[320989459,1711731067670,-500.0,0.00053424,120]
[320989460,1711731067680,-762.15,0.00053424,120]
[320989461,1711731067690,-500.0,0.00053424,120]
[320989462,1711731067701,-500.0,0.00053424,120]
[320989463,1711731067712,-562.03,0.00053424,120]
[320989464,1711731067722,-500.0,0.00053424,120]
[320989465,1711731067733,-500.0,0.00053424,120]
[320989466,1711731067744,-500.0,0.00053424,120]
[320989467,1711731067754,-1898.46,0.00053424,120]
[320989468,1711731067769,-500.0,0.00053424,120]
[320989469,1711731067780,-3412.66,0.00053424,120]
[320989470,1711731067789,-192.15555556,0.00053425,120]
[320989471,1711731067800,-1000.0,0.00053425,120]
[320989472,1711731067811,-1000.0,0.00053466,120]
[320989473,1711731067822,-161.032716,0.00053498,104]
[320989474,1711731067832,-157.032716,0.00053498,102]
[320989475,1711731067842,-1000.0,0.00053508,120]
[320989476,1711731067853,-160.57,0.00053508,120]
[320989477,1711731067864,-40124.30435578,0.00053527,2]
[320989478,1711731067874,-1000.0,0.00053549,120]
[320989479,1711731067884,-291.88732483,0.00053564,30]
[320989480,1711731067894,-5000.0,0.00053585,90]
[320989481,1711731067904,-1000.0,0.00053591,120]
[320989482,1711731067914,-1915.38981548,0.000536,120]
[320989483,1711731067925,-178.81,0.000536,30]
[320989484,1711731067935,-1000.0,0.00053632,120]
[320989485,1711731067946,-1000.0,0.00053674,120]
[320989486,1711731067956,-610.95,0.00053698,120]
[320989487,1711731067966,-512.9901286,0.00053698,120]
[320989488,1711731067976,-500.0,0.00053698,120]
[320989489,1711731067986,-500.0,0.00053698,120]
[320989490,1711731067996,-354.86936547,0.00053698,120]
[320989491,1711731068006,-431.43915959,0.00053698,120]
[320989492,1711731068018,-500.0,0.00053698,120]
[320989493,1711731068028,-500.0,0.00053698,120]
[320989494,1711731068037,-500.0,0.00053698,120]
[320989495,1711731068047,-500.0,0.00053698,120]
[320989496,1711731068056,-500.0,0.00053698,120]
[320989497,1711731068066,-500.0,0.00053698,120]
[320989498,1711731068076,-500.0,0.00053698,120]
[320989499,1711731068085,-500.0,0.00053698,120]
[320989500,1711731068095,-500.0,0.00053698,120]
[320989501,1711731068105,-500.0,0.00053698,120]
[320989502,1711731068114,-500.0,0.00053698,120]
[320989503,1711731068124,-314.16676659,0.00053698,120]
[320989504,1711731068133,-500.0,0.00053698,120]
[320989505,1711731068143,-500.0,0.00053698,120]
[320989506,1711731068153,-180.10613291,0.00053698,120]
[320989507,1711731068162,-568.51,0.00053698,120]
[320989508,1711731068171,-306.58,0.00053698,120]
[320989509,1711731068181,-500.0,0.00053698,120]
[320989510,1711731068191,-500.0,0.00053698,120]
[320989511,1711731068201,-1041.23,0.00053698,120]
[320989512,1711731068212,-500.0,0.00053698,120]
[320989513,1711731068221,-500.0,0.00053698,120]
[320989514,1711731068231,-500.0,0.00053698,120]
[320989515,1711731068241,-500.0,0.00053698,120]
[320989516,1711731068251,-500.0,0.00053698,120]
[320989517,1711731068260,-605.29,0.00053698,120]
[320989518,1711731068272,-500.0,0.00053698,120]
[320989519,1711731068282,-500.0,0.00053698,120]
[320989520,1711731068292,-500.0,0.00053698,120]
[320989521,1711731068301,-500.0,0.00053698,120]
[320989522,1711731068311,-500.0,0.00053698,120]
[320989523,1711731068321,-500.0,0.00053698,120]
[320989524,1711731068330,-264.21657379,0.00053698,120]
[320989525,1711731068340,-500.0,0.00053698,120]
[320989526,1711731068350,-500.0,0.00053698,120]
[320989527,1711731068359,-500.0,0.00053698,120]
[320989528,1711731068369,-500.0,0.00053698,120]
[320989529,1711731068378,-500.0,0.00053698,120]
[320989530,1711731068388,-198.64,0.00053698,120]
[320989531,1711731068397,-500.0,0.00053698,120]
[320989532,1711731068407,-500.0,0.00053698,120]
[320989533,1711731068418,-500.0,0.00053698,120]
[320989534,1711731068427,-500.0,0.00053698,120]
[320989535,1711731068438,-500.0,0.00053698,120]
[320989536,1711731068448,-500.0,0.00053698,120]
[320989537,1711731068459,-500.0,0.00053698,120]
[320989538,1711731068470,-500.0,0.00053698,120]
[320989539,1711731068481,-452.58159999,0.00053698,120]
[320989540,1711731068493,-500.0,0.00053698,120]
[320989541,1711731068507,-1717.8,0.00053698,120]
[320989542,1711731068519,-500.0,0.00053698,120]
[320989543,1711731068542,-500.0,0.00053698,120]
[320989544,1711731068554,-500.0,0.00053698,120]
[320989545,1711731068566,-529.46,0.00053698,120]
[320989546,1711731068577,-306.91101711,0.00053698,120]
[320989547,1711731068753,-500.0,0.00053698,120]
[320989548,1711731068768,-500.0,0.00053698,120]
[320989549,1711731068778,-160.07,0.00053698,120]
[320989550,1711731068791,-500.0,0.00053698,120]
[320989551,1711731068801,-500.0,0.00053698,120]
[320989552,1711731068811,-500.0,0.00053698,120]
[320989553,1711731068830,-500.0,0.00053698,120]
[320989554,1711731068842,-500.0,0.00053698,120]
[320989555,1711731068856,-500.0,0.00053698,120]
[320989556,1711731068869,-500.0,0.00053698,120]
[320989557,1711731068884,-550.7,0.00053698,120]
[320989558,1711731068896,-500.0,0.00053698,120]
[320989559,1711731068906,-500.0,0.00053698,120]
[320989560,1711731068919,-402.91400705,0.00053698,120]
[320989561,1711731068942,-523.84,0.00053698,120]
[320989562,1711731068953,-500.0,0.00053698,120]
[320989563,1711731068963,-500.0,0.00053698,120]
[320989564,1711731068974,-500.0,0.00053698,120]
[320989565,1711731068984,-500.0,0.00053698,120]
[320989566,1711731069006,-500.0,0.00053698,120]
[320989567,1711731069029,-984.5,0.00053698,120]
[320989568,1711731069040,-500.0,0.00053698,120]
[320989569,1711731069055,-1573.3,0.00053698,120]
[320989570,1711731069069,-500.0,0.00053698,120]
[320989571,1711731069080,-500.0,0.00053698,120]
[320989572,1711731069091,-500.0,0.00053698,120]
[320989573,1711731069101,-500.0,0.00053698,120]
[320989574,1711731069112,-500.0,0.00053698,120]
[320989575,1711731069122,-500.0,0.00053698,120]
[320989576,1711731069137,-500.0,0.00053698,120]
[320989577,1711731069155,-500.0,0.00053698,120]
[320989578,1711731069166,-500.0,0.00053698,120]
[320989579,1711731069177,-544.09,0.00053698,120]
[320989580,1711731069195,-500.0,0.00053698,120]
[320989581,1711731069208,-500.0,0.00053698,120]
[320989582,1711731069218,-500.0,0.00053698,120]
[320989583,1711731069228,-277.42,0.00053698,120]
[320989584,1711731069238,-3061.59,0.00053698,120]
[320989585,1711731069249,-1390.08,0.00053698,120]
[320989586,1711731069260,-500.0,0.00053698,120]
[320989587,1711731069273,-500.0,0.00053698,120]
[320989588,1711731069286,-530.97,0.00053698,120]
[320989589,1711731069297,-3852.22,0.00053698,120]
[320989590,1711731069308,-500.0,0.00053698,120]
[320989591,1711731069318,-500.0,0.00053698,120]
[320989592,1711731069328,-544.11,0.00053698,120]
[320989593,1711731069338,-2548.58,0.00053698,120]
[320989594,1711731069348,-899.89,0.00053698,120]
[320989595,1711731069374,-500.0,0.00053698,120]
[320989596,1711731069385,-798.72,0.00053698,120]
[320989597,1711731069395,-500.0,0.00053698,120]
[320989598,1711731069404,-4366.75,0.00053698,120]
[320989599,1711731069423,-2832.13,0.00053698,120]
[320989600,1711731069433,-2658.97,0.00053698,120]
[320989601,1711731069443,-587.1,0.00053698,120]
[320989602,1711731069452,-723.25,0.00053698,120]
[320989603,1711731069462,-5388.93,0.00053698,120]
[320989604,1711731069472,-500.0,0.00053698,120]
[320989605,1711731069492,-500.0,0.00053698,120]
[320989606,1711731069508,-2529.92,0.00053698,120]
[320989607,1711731069530,-500.0,0.00053698,120]
[320989608,1711731069552,-500.0,0.00053698,120]
[320989609,1711731069569,-2639.85,0.00053698,120]
[320989610,1711731069585,-500.0,0.00053698,120]
[320989611,1711731069602,-500.0,0.00053698,120]
[320989612,1711731069615,-2241.07,0.00053698,120]
[320989613,1711731069626,-13691.43,0.00053698,120]
[320989614,1711731069638,-536.48,0.00053698,120]
[320989615,1711731069651,-500.0,0.00053698,120]
[320989616,1711731069663,-2802.83,0.00053698,120]
[320989617,1711731069674,-500.0,0.00053698,120]
[320989618,1711731069685,-185.53650916,0.00053698,120]
[320989619,1711731069698,-2876.77,0.00053698,120]
[320989620,1711731069709,-1992.91,0.00053698,120]
[320989621,1711731069719,-500.0,0.00053698,120]
[320989622,1711731069730,-500.0,0.00053698,120]
[320989623,1711731069741,-500.0,0.00053698,120]
[320989624,1711731069753,-500.0,0.00053698,120]
[320989625,1711731069766,-527.12,0.00053698,120]
[320989626,1711731069777,-671.7,0.00053698,120]
[320989627,1711731069786,-543.55,0.00053698,120]
[320989628,1711731069796,-2310.88,0.00053698,120]
[320989629,1711731069805,-3596.62,0.00053698,120]
[320989630,1711731069817,-549.36,0.00053698,120]
[320989631,1711731069828,-500.0,0.00053698,120]
[320989632,1711731069839,-500.0,0.00053698,120]
[320989633,1711731069849,-762.26,0.00053698,120]
[320989634,1711731069859,-500.0,0.00053698,80]
[320989635,1711731069870,-500.0,0.00053698,120]
[320989636,1711731069881,-5212.23,0.00053698,120]
[320989637,1711731069893,-532.23,0.00053698,120]
[320989638,1711731069903,-500.0,0.00053698,120]
[320989639,1711731069915,-500.0,0.00053698,120]
[320989640,1711731069926,-500.0,0.00053698,120]
[320989641,1711731069937,-838.76,0.00053698,120]
[320989642,1711731069947,-500.0,0.00053698,120]
[320989643,1711731069958,-688.85,0.00053698,120]
[320989644,1711731069969,-500.0,0.00053698,120]
[320989645,1711731069980,-1392.06,0.00053698,120]
[320989646,1711731069990,-630.06,0.00053698,120]
[320989647,1711731070001,-500.0,0.00053698,120]
[320989648,1711731070012,-500.0,0.00053698,120]
[320989649,1711731070023,-500.0,0.00053698,120]
[320989650,1711731070034,-610.57,0.00053698,120]
[320989651,1711731070045,-1553.83,0.00053698,120]
[320989652,1711731070055,-500.0,0.00053698,120]
[320989653,1711731070065,-533.63,0.00053698,120]
[320989654,1711731070075,-1299.22,0.00053698,120]
[320989655,1711731070086,-531.65,0.00053698,120]
[320989656,1711731070096,-500.0,0.00053698,120]
[320989657,1711731070106,-2611.36,0.00053698,120]
[320989658,1711731070117,-3220.74,0.00053698,120]
[320989659,1711731070127,-500.0,0.00053698,120]
[320989660,1711731070141,-617.12,0.00053698,120]
[320989661,1711731070151,-1080.91,0.00053698,120]
[320989662,1711731070161,-500.0,0.00053698,120]
[320989663,1711731070171,-6640.01,0.00053698,120]
[320989664,1711731070183,-622.83,0.00053698,120]
[320989665,1711731070194,-2395.31,0.00053698,120]
[320989666,1711731070204,-500.0,0.00053698,120]
[320989667,1711731070215,-616.27,0.00053698,120]
[320989668,1711731070225,-500.0,0.00053698,120]
[320989669,1711731070237,-723.84,0.00053698,120]
[320989670,1711731070247,-7687.49,0.00053698,120]
[320989671,1711731070257,-500.0,0.00053698,120]
[320989672,1711731070268,-500.0,0.00053698,120]
[320989673,1711731070280,-819.41,0.00053698,120]
[320989674,1711731070291,-905.05,0.00053698,120]
[320989675,1711731070302,-2738.82,0.00053698,120]
[320989676,1711731070311,-3086.07,0.00053698,120]
[320989677,1711731070322,-1875.18,0.00053698,120]
[320989678,1711731070332,-2093.61,0.00053698,120]
[320989679,1711731070342,-399.01549056,0.00053698,60]
[320989680,1711731070354,-7651.47,0.00053698,120]
[320989681,1711731070364,-4165.02,0.00053698,120]
[320989682,1711731070374,-3539.77,0.00053698,120]
[320989683,1711731070384,-1606.38,0.00053698,120]
[320989684,1711731070395,-500.0,0.00053698,120]
[320989685,1711731070405,-3005.88,0.00053698,120]
[320989686,1711731070416,-2154.85,0.00053698,120]
[320989687,1711731070426,-2774.07,0.00053698,120]
[320989688,1711731070437,-500.0,0.00053698,120]
[320989689,1711731070448,-500.0,0.00053698,2]
[320989690,1711731070461,-264.79991036,0.00053698,2]
[320989691,1711731070479,-576.12,0.00053698,120]
[320989692,1711731070501,-589.34,0.00053698,120]
[320989693,1711731070524,-500.0,0.00053698,120]
[320989694,1711731070539,-1154.67,0.00053698,120]
[320989695,1711731070559,-500.0,0.00053698,120]
[320989696,1711731070577,-500.0,0.00053698,120]
[320989697,1711731070596,-1991.81,0.00053698,120]
[320989698,1711731070613,-2448.83,0.00053698,120]
[320989699,1711731070628,-500.0,0.00053698,120]
[320989700,1711731070647,-2369.82,0.00053698,120]
[320989701,1711731070663,-904.7,0.00053698,120]
[320989702,1711731070678,-500.0,0.00053698,120]
[320989703,1711731070696,-544.8,0.00053698,120]
[320989704,1711731070711,-1684.1,0.00053698,120]
[320989705,1711731070728,-6471.64,0.00053698,120]
[320989706,1711731070743,-4037.26,0.00053698,21]
[320989707,1711731070762,-2486.15,0.00053698,120]
[320989708,1711731070785,-1722.55,0.00053698,120]
[320989709,1711731070800,-1325.8,0.00053698,120]
[320989710,1711731070818,-500.0,0.00053698,120]
[320989711,1711731070836,-2956.53,0.00053698,120]
[320989712,1711731070854,-4113.57,0.00053698,120]
[320989713,1711731070872,-500.0,0.00053698,120]
[320989714,1711731070886,-262.85,0.00053698,120]
[320989715,1711731070898,-500.0,0.00053698,120]
[320989716,1711731070913,-500.0,0.00053698,120]
[320989717,1711731070930,-915.79,0.00053698,120]
[320989718,1711731070946,-500.0,0.00053698,120]
[320989719,1711731070960,-1595.2,0.00053698,120]
[320989720,1711731070972,-500.0,0.00053698,120]
[320989721,1711731070987,-500.0,0.00053698,120]
[320989722,1711731071000,-684.51,0.00053698,120]
[320989723,1711731071014,-500.0,0.00053698,120]
[320989724,1711731071031,-500.0,0.00053698,120]
[320989725,1711731071047,-500.0,0.00053698,120]
[320989726,1711731071062,-2976.3,0.00053698,120]
[320989727,1711731071077,-500.0,0.00053698,120]
[320989728,1711731071092,-1003.25,0.00053698,120]
[320989729,1711731071107,-500.0,0.00053698,120]
[320989730,1711731071122,-500.0,0.00053698,120]
[320989731,1711731071137,-1221.75,0.00053698,120]
[320989732,1711731071151,-762.15,0.00053698,120]
[320989733,1711731071168,-500.0,0.00053698,120]
[320989734,1711731071183,-500.0,0.00053698,120]
[320989735,1711731071199,-562.03,0.00053698,120]
[320989736,1711731071214,-500.0,0.00053698,120]
[320989737,1711731071228,-500.0,0.00053698,120]
[320989738,1711731071242,-1898.46,0.00053698,120]
[320989739,1711731071256,-500.0,0.00053698,120]
[320989740,1711731071271,-500.0,0.00053698,120]
[320989741,1711731071284,-3412.66,0.00053698,120]
[320989742,1711731071298,-1000.0,0.00053715,120]
[320989743,1711731071312,-1891.05918515,0.00053718,31]
[320989744,1711731071325,-557.79739,0.0005372,67]
[320989745,1711731071339,-386.92448372,0.0005375,30]
[320989746,1711731071353,-1000.0,0.00053757,120]
[320989747,1711731071367,-200.0,0.00053788,30]
[320989748,1711731071381,-302.065432,0.00053798,105]
[320989749,1711731071395,-1000.0,0.00053798,120]
[320989750,1711731071409,-310.13458776,0.000538,120]
[320989751,1711731071425,-1000.0,0.0005384,120]
[320989752,1711731071438,-164.51877775,0.00053867,2]
[320989753,1711731071454,-115562.40430649,0.0005387,120]
[320989754,1711731071468,-1000.0,0.00053881,120]
[320989755,1711731071483,-23977.19299553,0.000539,120]
[320989756,1711731071498,-153.88,0.000539,7]
[320989757,1711731071514,-610.95,0.00053972,120]
[320989758,1711731071539,-549.9,0.00053972,120]
[320989759,1711731071556,-500.0,0.00053972,120]
[320989760,1711731071572,-263.65129115,0.00053972,120]
[320989761,1711731071587,-500.0,0.00053972,120]
[320989762,1711731071604,-406.88713969,0.00053972,120]
[320989763,1711731071619,-347.00357319,0.00053972,120]
[320989764,1711731071638,-500.0,0.00053972,120]
[320989765,1711731071655,-500.0,0.00053972,120]
[320989766,1711731071671,-500.0,0.00053972,120]
[320989767,1711731071686,-500.0,0.00053972,120]
[320989768,1711731071703,-500.0,0.00053972,120]
[320989769,1711731071718,-364.45535687,0.00053972,120]
[320989770,1711731071733,-500.0,0.00053972,120]
[320989771,1711731071750,-500.0,0.00053972,120]
[320989772,1711731071764,-568.51,0.00053972,120]
[320989773,1711731071785,-500.0,0.00053972,120]
[320989774,1711731071800,-1041.23,0.00053972,120]
[320989775,1711731071817,-500.0,0.00053972,120]
[320989776,1711731071831,-500.0,0.00053972,120]
[320989777,1711731071846,-500.0,0.00053972,120]
[320989778,1711731071861,-500.0,0.00053972,120]
[320989779,1711731071876,-557.55514081,0.00053972,120]
[320989780,1711731071891,-500.0,0.00053972,120]
[320989781,1711731071905,-605.29,0.00053972,120]
[320989782,1711731071919,-500.0,0.00053972,120]
[320989783,1711731071933,-500.0,0.00053972,120]
[320989784,1711731071948,-500.0,0.00053972,120]
[320989785,1711731071963,-500.0,0.00053972,120]
[320989786,1711731071978,-453.74,0.00053972,120]
[320989787,1711731071993,-500.0,0.00053972,120]
[320989788,1711731072008,-578.78836463,0.00053972,120]
[320989789,1711731072027,-500.0,0.00053972,120]
[320989790,1711731072042,-500.0,0.00053972,120]
[320989791,1711731072056,-500.0,0.00053972,120]
[320989792,1711731072071,-500.0,0.00053972,120]
[320989793,1711731072086,-500.0,0.00053972,120]
[320989794,1711731072100,-500.0,0.00053972,120]
[320989795,1711731072114,-500.0,0.00053972,120]
[320989796,1711731072128,-500.0,0.00053972,120]
[320989797,1711731072142,-500.0,0.00053972,120]
[320989798,1711731072156,-500.0,0.00053972,120]
[320989799,1711731072169,-500.0,0.00053972,120]
[320989800,1711731072182,-500.0,0.00053972,120]
[320989801,1711731072197,-500.0,0.00053972,120]
[320989802,1711731072210,-500.0,0.00053972,120]
[320989803,1711731072223,-1717.8,0.00053972,120]
[320989804,1711731072237,-500.0,0.00053972,120]
[320989805,1711731072251,-500.0,0.00053972,120]
[320989806,1711731072265,-500.0,0.00053972,120]
[320989807,1711731072283,-500.0,0.00053972,120]
[320989808,1711731072297,-160.07,0.00053972,120]
[320989809,1711731072310,-500.0,0.00053972,120]
[320989810,1711731072325,-500.0,0.00053972,120]
[320989811,1711731072343,-500.0,0.00053972,120]
[320989812,1711731072357,-500.0,0.00053972,120]
[320989813,1711731072367,-500.0,0.00053972,120]
[320989814,1711731072376,-500.0,0.00053972,120]
[320989815,1711731072386,-500.0,0.00053972,120]
[320989816,1711731072396,-550.7,0.00053972,120]
[320989817,1711731072406,-500.0,0.00053972,120]
[320989818,1711731072416,-500.0,0.00053972,120]
[320989819,1711731072426,-523.84,0.00053972,120]
[320989820,1711731072435,-500.0,0.00053972,120]
[320989821,1711731072445,-500.0,0.00053972,120]
[320989822,1711731072456,-500.0,0.00053972,120]
[320989823,1711731072466,-500.0,0.00053972,120]
[320989824,1711731072476,-500.0,0.00053972,120]
[320989825,1711731072486,-984.5,0.00053972,120]
[320989826,1711731072496,-500.0,0.00053972,120]
[320989827,1711731072508,-1573.3,0.00053972,120]
[320989828,1711731072520,-500.0,0.00053972,120]
[320989829,1711731072531,-500.0,0.00053972,120]
[320989830,1711731072543,-235.92,0.00053972,120]
[320989831,1711731072554,-500.0,0.00053972,120]
[320989832,1711731072568,-500.0,0.00053972,120]
[320989833,1711731072579,-622.63,0.00053972,120]
[320989834,1711731072941,-500.0,0.00053972,120]
[320989835,1711731072970,-500.0,0.00053972,120]
[320989836,1711731072987,-500.0,0.00053972,120]
[320989837,1711731072998,-544.09,0.00053972,120]
[320989838,1711731073008,-500.0,0.00053972,120]
[320989839,1711731073022,-500.0,0.00053972,120]
[320989840,1711731073033,-500.0,0.00053972,120]
[320989841,1711731073043,-3061.59,0.00053972,120]
[320989842,1711731073054,-500.0,0.00053972,120]
[320989843,1711731073065,-1390.08,0.00053972,120]
[320989844,1711731073076,-500.0,0.00053972,120]
[320989845,1711731073086,-530.97,0.00053972,120]
[320989846,1711731073097,-3852.22,0.00053972,120]
[320989847,1711731073107,-368.27857259,0.00053972,35]
[320989848,1711731073118,-378.35115887,0.00053972,120]
[320989849,1711731073128,-500.0,0.00053972,120]
[320989850,1711731073139,-544.11,0.00053972,120]
[320989851,1711731073149,-2548.58,0.00053972,120]
[320989852,1711731073160,-500.0,0.00053972,120]
[320989853,1711731073171,-899.89,0.00053972,120]
[320989854,1711731073181,-798.72,0.00053972,120]
[320989855,1711731073191,-500.0,0.00053972,120]
[320989856,1711731073202,-4366.75,0.00053972,120]
[320989857,1711731073212,-2832.13,0.00053972,120]
[320989858,1711731073222,-2658.97,0.00053972,120]
[320989859,1711731073232,-587.1,0.00053972,120]
[320989860,1711731073242,-723.25,0.00053972,120]
[320989861,1711731073251,-5388.93,0.00053972,120]
[320989862,1711731073262,-514.47429918,0.00053972,120]
[320989863,1711731073275,-500.0,0.00053972,120]
[320989864,1711731073285,-2529.92,0.00053972,120]
[320989865,1711731073294,-500.0,0.00053972,120]
[320989866,1711731073304,-500.0,0.00053972,120]
[320989867,1711731073315,-2639.85,0.00053972,120]
[320989868,1711731073329,-500.0,0.00053972,120]
[320989869,1711731073342,-500.0,0.00053972,120]
[320989870,1711731073354,-2241.07,0.00053972,120]
[320989871,1711731073365,-13691.43,0.00053972,120]
[320989872,1711731073376,-536.48,0.00053972,120]
[320989873,1711731073388,-500.0,0.00053972,120]
[320989874,1711731073398,-500.0,0.00053972,120]
[320989875,1711731073409,-2802.83,0.00053972,120]
[320989876,1711731073420,-2876.77,0.00053972,120]
[320989877,1711731073430,-1992.91,0.00053972,120]
[320989878,1711731073441,-500.0,0.00053972,120]
[320989879,1711731073451,-500.0,0.00053972,120]
[320989880,1711731073465,-500.0,0.00053972,120]
[320989881,1711731073476,-500.0,0.00053972,120]
[320989882,1711731073486,-671.7,0.00053972,120]
[320989883,1711731073497,-543.55,0.00053972,120]
[320989884,1711731073520,-2310.88,0.00053972,120]
[320989885,1711731073544,-3596.62,0.00053972,120]
[320989886,1711731073563,-549.36,0.00053972,120]
[320989887,1711731073575,-500.0,0.00053972,120]
[320989888,1711731073586,-500.0,0.00053972,120]
[320989889,1711731073600,-762.26,0.00053972,120]
[320989890,1711731073613,-500.0,0.00053972,80]
[320989891,1711731073623,-214.33764614,0.00053972,120]
[320989892,1711731073634,-5212.23,0.00053972,120]
[320989893,1711731073662,-532.23,0.00053972,120]
[320989894,1711731073674,-500.0,0.00053972,120]
[320989895,1711731073685,-500.0,0.00053972,120]
[320989896,1711731073696,-500.0,0.00053972,120]
[320989897,1711731073706,-838.76,0.00053972,120]
[320989898,1711731073717,-500.0,0.00053972,120]
[320989899,1711731073728,-688.85,0.00053972,120]
[320989900,1711731073741,-500.0,0.00053972,120]
[320989901,1711731073752,-1392.06,0.00053972,120]
[320989902,1711731073763,-630.06,0.00053972,120]
[320989903,1711731073781,-500.0,0.00053972,120]
[320989904,1711731073793,-500.0,0.00053972,120]
[320989905,1711731073805,-500.0,0.00053972,120]
[320989906,1711731073817,-610.57,0.00053972,120]
[320989907,1711731073828,-1553.83,0.00053972,120]
[320989908,1711731073841,-647.03555564,0.00053972,120]
[320989909,1711731073852,-533.63,0.00053972,120]